bitfinex/quotes_BTCUSD_20250208
["timestamp","ask_amount","ask_price","bid_price","bid_amount"]
[1739039071874,0.05840428,96416.0,96415.0,0.2897433]
[1739039072323,0.05840428,96416.0,96415.0,0.1341663]
[1739039072681,0.05840428,96416.0,96415.0,0.2897433]
[1739039075438,0.05840428,96416.0,96415.0,0.28996758]
[1739039075837,0.05851108,96416.0,96415.0,0.28996758]
[1739039076039,0.02741704,96416.0,96415.0,0.28996758]
[1739039079912,0.02741704,96416.0,96415.0,0.13439058]
[1739039080869,0.02741704,96416.0,96415.0,0.28996758]
[1739039081386,0.02741704,96416.0,96415.0,0.13439058]
[1739039081962,0.02741704,96416.0,96415.0,0.28996758]
[1739039082136,0.02741704,96416.0,96415.0,0.13439058]
[1739039082555,0.02741704,96416.0,96415.0,0.28996758]
[1739039082966,0.02741704,96416.0,96415.0,0.13439058]
[1739039083603,0.02741704,96416.0,96415.0,0.28996758]
[1739039084032,0.02741704,96416.0,96415.0,0.13439058]
[1739039084345,0.02741704,96416.0,96415.0,0.28996758]
[1739039085002,0.02741704,96416.0,96415.0,0.13439058]
[1739039085589,0.02741704,96416.0,96415.0,0.28996758]
[1739039086804,0.02741704,96416.0,96415.0,0.13439058]
[1739039091657,0.02741704,96416.0,96415.0,0.28996758]
[1739039092655,0.02741704,96416.0,96415.0,0.13439058]
[1739039092954,0.02741704,96416.0,96415.0,0.28996758]
[1739039096062,0.0081068,96416.0,96415.0,0.28996758]
[1739039111948,0.0081068,96416.0,96415.0,0.39247123]
[1739039112546,0.0081068,96416.0,96415.0,0.40493499]
[1739039112758,0.0081068,96416.0,96415.0,0.4373178]
[1739039113010,0.0061068,96416.0,96415.0,0.4373178]
[1739039113490,0.0001068,96416.0,96415.0,0.4413178]
[1739039113745,0.0061068,96416.0,96415.0,0.4373178]
[1739039113938,0.0071068,96416.0,96415.0,0.4453178]
[1739039114148,0.0011068,96416.0,96415.0,0.4363178]
[1739039114356,0.0011068,96416.0,96415.0,0.40393499]
[1739039115532,0.0031068,96416.0,96415.0,0.41793499]
[1739039115732,0.0011068,96416.0,96415.0,0.43084872]
[1739039115979,0.0001068,96416.0,96415.0,0.42484872]
[1739039116113,0.0011068,96416.0,96415.0,0.43384872]
[1739039116317,0.0021068,96416.0,96415.0,0.44184872]
[1739039116739,1e-08,96424.0,96423.0,0.231664]
[1739039116975,0.05921187,96440.0,96424.0,0.0761]
[1739039117158,0.05925705,96440.0,96438.0,0.15554]
[1739039117496,4.518e-05,96440.0,96439.0,0.00656585]
[1739039119061,4.518e-05,96440.0,96439.0,0.16210385]
[1739039119305,4.518e-05,96440.0,96439.0,0.00656585]
[1739039119485,0.00304518,96440.0,96439.0,0.00656585]
[1739039120175,4.518e-05,96440.0,96439.0,0.00656585]
[1739039120581,4.518e-05,96440.0,96436.0,0.155542]
[1739039120899,4.518e-05,96440.0,96437.0,0.00656767]
[1739039121278,4.518e-05,96440.0,96436.0,0.155542]
[1739039121489,4.518e-05,96440.0,96438.0,0.00656676]
[1739039121689,0.00304518,96440.0,96436.0,0.155542]
[1739039121893,0.00304518,96440.0,96437.0,0.155541]
[1739039122238,0.00304518,96440.0,96437.0,0.00656767]
[1739039122428,0.00304518,96440.0,96437.0,0.155541]
[1739039122753,0.00304518,96440.0,96438.0,0.00656676]
[1739039122928,4.518e-05,96440.0,96438.0,0.00656676]
[1739039123130,0.00315188,96440.0,96438.0,0.00656676]
[1739039123535,0.00768,96446.0,96438.0,0.00656676]
[1739039123835,0.00768,96446.0,96436.0,0.36315507]
[1739039123975,0.00768,96446.0,96439.0,0.00656448]
[1739039124175,0.00768,96446.0,96436.0,0.36315507]
[1739039124620,0.00768,96446.0,96437.0,0.0065663]
[1739039124973,0.00768,96446.0,96437.0,0.1621073]
[1739039125203,0.003,96440.0,96437.0,0.1621073]
[1739039125376,0.003,96440.0,96437.0,0.0065663]
[1739039125523,0.00768,96446.0,96437.0,0.0065663]
[1739039125722,0.01168,96446.0,96436.0,0.15576607]
[1739039125946,0.01168,96446.0,96438.0,0.00656539]
[1739039126278,0.00968,96446.0,96439.0,0.00656448]
[1739039126481,0.00968,96446.0,96436.0,0.15576607]
[1739039126636,0.003,96440.0,96436.0,0.15576607]
[1739039127019,0.003,96440.0,96436.0,0.00022407]
[1739039127243,0.003,96440.0,96437.0,0.155541]
[1739039127986,0.003,96440.0,96438.0,0.00656539]
[1739039128185,0.00968,96446.0,96438.0,0.00656539]
[1739039128622,0.01368,96446.0,96439.0,0.155538]
[1739039128828,0.01168,96446.0,96439.0,0.155538]
[1739039129035,0.00768,96446.0,96440.0,0.00656357]
[1739039129764,0.00968,96446.0,96441.0,0.00656265]
[1739039130152,0.01368,96446.0,96438.0,0.155539]
[1739039130342,0.01368,96446.0,96442.0,0.00656174]
[1739039130479,0.01368,96446.0,96438.0,0.155539]
[1739039130679,0.01368,96446.0,96443.0,0.00656083]
[1739039130880,0.01168,96446.0,96439.0,0.155538]
[1739039131084,0.01168,96446.0,96444.0,0.00655992]
[1739039131287,0.01168,96446.0,96437.0,0.0466]
[1739039131512,0.01168,96446.0,96445.0,0.00655901]
[1739039131719,0.00768,96446.0,96437.0,0.202141]
[1739039132055,0.00768,96446.0,96438.0,0.00693586]
[1739039132198,0.01168,96446.0,96438.0,0.00693586]
[1739039132397,0.01168,96446.0,96438.0,0.15554]
[1739039132607,0.00968,96446.0,96439.0,0.00693514]
[1739039132817,0.01368,96446.0,96439.0,0.00693514]
[1739039133021,0.01168,96446.0,96439.0,0.00693514]
[1739039133223,0.01368,96446.0,96439.0,0.00693514]
[1739039133424,0.00968,96446.0,96439.0,0.00693514]
[1739039133735,0.01168,96446.0,96439.0,0.00693514]
[1739039133944,0.01368,96446.0,96439.0,0.00693514]
[1739039135226,0.01368,96446.0,96440.0,0.00693432]
[1739039136081,0.00768,96446.0,96440.0,0.00693432]
[1739039136521,0.01368,96446.0,96440.0,0.00693432]
[1739039136683,0.155529,96445.0,96440.0,0.00693432]
[1739039137520,0.006,96446.0,96440.0,0.00693432]
[1739039137740,0.159528,96446.0,96441.0,0.0822]
[1739039137945,0.004,96446.0,96441.0,0.0822]
[1739039138558,0.23155268,96448.0,96441.0,0.0822]
[1739039138761,0.004,96445.0,96442.0,0.00693287]
[1739039139185,0.002,96445.0,96442.0,0.00693287]
[1739039139517,0.155526,96447.0,96442.0,0.00693287]
[1739039139518,0.004,96446.0,96442.0,0.00693287]
[1739039139918,0.155526,96447.0,96442.0,0.00693287]
[1739039140324,0.006,96445.0,96442.0,0.00693287]
[1739039141206,0.006,96445.0,96439.0,0.00693514]
[1739039141526,0.002,96445.0,96439.0,0.00693514]
[1739039142128,0.155528,96446.0,96439.0,0.00693514]
[1739039142324,0.155528,96446.0,96440.0,0.00693432]
[1739039142574,0.003,96445.0,96440.0,0.00693432]
[1739039143030,0.006,96445.0,96440.0,0.00693432]
[1739039143228,0.007,96445.0,96440.0,0.00693432]
[1739039144879,0.155528,96446.0,96440.0,0.00693432]
[1739039145078,0.155529,96445.0,96440.0,0.00693432]
[1739039145281,0.165529,96445.0,96440.0,0.00793432]
[1739039145683,0.158529,96445.0,96440.0,0.00693432]
[1739039146127,0.158529,96445.0,96440.0,0.00793432]
[1739039146305,0.003,96445.0,96440.0,0.00793432]
[1739039146503,0.003,96445.0,96440.0,0.00693432]
[1739039146885,0.01,96445.0,96440.0,0.00793432]
[1739039147542,0.05042706,96445.0,96440.0,0.00793432]
[1739039147772,0.20595606,96445.0,96440.0,0.00793432]
[1739039147960,0.20595606,96445.0,96440.0,0.001]
[1739039148168,0.30987765,96444.0,96440.0,0.001]
[1739039148320,0.155534,96442.0,96440.0,0.001]
[1739039148520,0.25803765,96442.0,96440.0,0.001]
[1739039148753,0.10250365,96442.0,96440.0,0.001]
[1739039148960,0.10250365,96442.0,96439.0,0.00693514]
[1739039149852,0.10450365,96442.0,96439.0,0.00693514]
[1739039150055,0.10750365,96442.0,96439.0,0.00693514]
[1739039150688,0.10750365,96442.0,96440.0,0.00693325]
[1739039150883,0.005,96442.0,96441.0,0.1265]
[1739039151352,0.005,96442.0,96441.0,0.13343253]
[1739039151499,0.007,96442.0,96441.0,0.13343253]
[1739039151697,0.002,96442.0,96441.0,0.13343253]
[1739039152108,0.007,96442.0,96441.0,0.13343253]
[1739039152331,0.005,96442.0,96441.0,0.13343253]
[1739039152558,0.002,96442.0,96441.0,0.13343253]
[1739039153013,0.007,96442.0,96441.0,0.05653253]
[1739039158089,0.007,96442.0,96441.0,0.00693253]
[1739039158264,0.007,96442.0,96439.0,0.00693514]
[1739039158469,0.007,96442.0,96441.0,0.00693253]
[1739039158648,0.007,96442.0,96439.0,0.00693514]
[1739039158850,0.007,96442.0,96440.0,0.00693325]
[1739039159196,0.002,96442.0,96440.0,0.00693325]
[1739039159486,0.007,96442.0,96440.0,0.00693325]
[1739039159795,0.005,96442.0,96440.0,0.00693325]
[1739039160148,0.007,96442.0,96440.0,0.00693325]
[1739039160355,0.007,96442.0,96440.0,0.00715753]
[1739039160671,0.26503865,96442.0,96440.0,0.00715753]
[1739039160874,0.26003865,96442.0,96440.0,0.00715753]
[1739039161088,0.22301297,96441.0,96440.0,0.00022428]
[1739039162407,0.23001297,96441.0,96440.0,0.00022428]
[1739039163313,0.162535,96441.0,96440.0,0.00022428]
[1739039163814,0.157535,96441.0,96440.0,0.00022428]
[1739039164158,0.162535,96441.0,96440.0,0.00022428]
[1739039164562,0.157535,96441.0,96440.0,0.00022428]
[1739039164763,0.162535,96441.0,96440.0,0.00022428]
[1739039169102,0.18198919,96441.0,96440.0,0.00022428]
[1739039169962,0.162535,96441.0,96440.0,0.00022428]
[1739039171148,0.007,96441.0,96440.0,0.00022428]
[1739039171354,0.007,96441.0,96440.0,0.28226128]
[1739039171766,0.007,96441.0,96440.0,0.28919453]
[1739039171942,0.00768,96448.0,96440.0,0.28919453]
[1739039172486,0.23875253,96450.0,96441.0,0.155535]
[1739039172792,0.00768,96448.0,96441.0,0.155535]
[1739039172965,0.00768,96448.0,96442.0,0.0069318]
[1739039173227,0.01468,96448.0,96442.0,0.0069318]
[1739039173635,0.00768,96448.0,96442.0,0.0069318]
[1739039173987,0.01468,96448.0,96443.0,0.00693107]
[1739039174372,0.01468,96448.0,96440.0,0.28226028]
[1739039174586,0.00768,96448.0,96444.0,0.00693034]
[1739039174744,0.01468,96448.0,96442.0,0.001]
[1739039174945,0.01468,96448.0,96445.0,0.00692962]
[1739039175149,0.01868,96448.0,96442.0,0.001]
[1739039175351,0.01868,96448.0,96446.0,0.00692889]
[1739039175558,0.01868,96448.0,96442.0,0.001]
[1739039175763,0.01468,96448.0,96447.0,0.00692816]
[1739039176005,0.00768,96448.0,96440.0,0.28226028]
[1739039176204,0.00968,96448.0,96440.0,0.28226028]
[1739039176368,0.00968,96448.0,96441.0,0.00693253]
[1739039176769,0.00968,96448.0,96443.0,0.155531]
[1739039176969,0.00968,96448.0,96441.0,0.16246753]
[1739039177173,0.00968,96448.0,96444.0,0.00693034]
[1739039177365,0.00968,96448.0,96441.0,0.155535]
[1739039177570,0.00968,96448.0,96445.0,0.00692962]
[1739039177748,0.00968,96448.0,96441.0,0.155535]
[1739039177952,0.01368,96448.0,96446.0,0.00692889]
[1739039178215,0.00768,96448.0,96440.0,0.12672428]
[1739039178623,0.00968,96448.0,96441.0,0.155534]
[1739039178830,0.00968,96448.0,96441.0,0.00693253]
[1739039179035,0.01168,96448.0,96441.0,0.00693253]
[1739039179376,0.00968,96448.0,96441.0,0.00693253]
[1739039179631,0.01168,96448.0,96441.0,0.00693253]
[1739039180181,0.01368,96448.0,96441.0,0.00693253]
[1739039182000,0.01368,96448.0,96442.0,0.0774]
[1739039182176,0.00968,96448.0,96443.0,0.207376]
[1739039182329,0.00968,96448.0,96443.0,0.21430707]
[1739039182531,0.01168,96448.0,96443.0,0.21430707]
[1739039182736,0.00968,96448.0,96443.0,0.00693107]
[1739039183132,0.01068,96448.0,96442.0,0.232933]
[1739039183350,0.01068,96448.0,96444.0,0.00693034]
[1739039183573,0.00968,96448.0,96443.0,0.00693107]
[1739039183735,0.003,96448.0,96445.0,0.00692962]
[1739039183935,0.001,96448.0,96444.0,0.00693034]
[1739039184157,0.02040485,96450.0,96446.0,0.00692889]
[1739039184526,0.02040485,96450.0,96442.0,0.232933]
[1739039184527,0.003,96448.0,96447.0,0.00692816]
[1739039184903,0.003,96448.0,96442.0,0.0774]
[1739039185134,0.003,96448.0,96447.0,0.00692816]
[1739039185270,0.003,96448.0,96442.0,0.0774]
[1739039185612,0.02040485,96450.0,96443.0,0.00693107]
[1739039185826,0.002,96448.0,96443.0,0.00693107]
[1739039185984,0.003,96448.0,96443.0,0.00693107]
[1739039186189,0.02040485,96450.0,96442.0,0.0774]
[1739039186390,0.001,96448.0,96444.0,0.00693034]
[1739039186588,0.003,96448.0,96443.0,0.00693107]
[1739039186787,0.002,96448.0,96445.0,0.00692962]
[1739039187014,0.001,96448.0,96444.0,0.00693034]
[1739039187334,0.02240485,96450.0,96445.0,0.00692962]
[1739039187708,0.001,96448.0,96442.0,0.0774]
[1739039188114,0.001,96448.0,96443.0,0.00693107]
[1739039188608,0.001,96448.0,96442.0,0.0774]
[1739039188933,0.02040485,96450.0,96443.0,0.00693107]
[1739039189133,0.002,96448.0,96443.0,0.00693107]
[1739039189460,0.02040485,96450.0,96442.0,0.0774]
[1739039189685,0.001,96448.0,96443.0,0.00693107]
[1739039189901,0.003,96448.0,96442.0,0.0774]
[1739039190095,0.003,96448.0,96444.0,0.00693034]
[1739039190354,0.002,96448.0,96443.0,0.00693107]
[1739039190561,0.002,96448.0,96445.0,0.00692962]
[1739039190764,0.002,96448.0,96444.0,0.00693034]
[1739039190987,0.002,96448.0,96446.0,0.00692889]
[1739039191183,0.002,96448.0,96445.0,0.00692962]
[1739039191387,0.002,96448.0,96447.0,0.00692816]
[1739039191562,0.002,96448.0,96446.0,0.00692889]
[1739039191762,0.002,96448.0,96442.0,0.0774]
[1739039191963,0.002,96448.0,96447.0,0.00692816]
[1739039192165,0.002,96448.0,96442.0,0.0774]
[1739039192166,0.004,96448.0,96442.0,0.0774]
[1739039192692,0.02040485,96450.0,96443.0,0.00693107]
[1739039192892,0.002,96448.0,96443.0,0.00693107]
[1739039193120,0.003,96448.0,96443.0,0.00693107]
[1739039193267,0.003,96448.0,96442.0,0.0774]
[1739039193470,0.001,96448.0,96443.0,0.00693107]
[1739039193683,0.02040485,96450.0,96442.0,0.0774]
[1739039193879,0.02240485,96450.0,96442.0,0.0774]
[1739039194060,0.001,96448.0,96443.0,0.00693107]
[1739039194425,0.02240485,96450.0,96443.0,0.00693107]
[1739039194706,0.02240485,96450.0,96442.0,0.0774]
[1739039195132,0.0001068,96448.0,96442.0,0.0774]
[1739039195539,0.0021068,96448.0,96442.0,0.0774]
[1739039195712,0.0031068,96448.0,96442.0,0.0774]
[1739039195932,0.0011068,96448.0,96442.0,0.0774]
[1739039196233,0.0001068,96448.0,96442.0,0.0774]
[1739039196453,0.0011068,96448.0,96442.0,0.0774]
[1739039197051,0.0031068,96448.0,96443.0,0.00693107]
[1739039197343,0.0031068,96448.0,96442.0,0.0774]
[1739039197541,0.0031068,96448.0,96444.0,0.00693034]
[1739039197742,0.0031068,96448.0,96443.0,0.00693107]
[1739039197948,0.0031068,96448.0,96445.0,0.00692962]
[1739039198121,0.0031068,96448.0,96442.0,0.0774]
[1739039198122,0.0031068,96448.0,96444.0,0.00693034]
[1739039198339,0.0011068,96448.0,96446.0,0.00692889]
[1739039198525,0.0011068,96448.0,96445.0,0.00692962]
[1739039198844,0.0021068,96448.0,96442.0,0.0774]
[1739039199019,0.0031068,96448.0,96446.0,0.00692889]
[1739039199188,0.0011068,96448.0,96442.0,0.0774]
[1739039199390,0.0011068,96448.0,96447.0,0.00692816]
[1739039199590,0.0021068,96448.0,96442.0,0.0774]
[1739039199800,0.0031068,96448.0,96442.0,0.0774]
[1739039200000,0.0011068,96448.0,96443.0,0.00693107]
[1739039200195,0.0021068,96448.0,96443.0,0.00693107]
[1739039200408,0.0031068,96448.0,96442.0,0.0774]
[1739039201862,0.0001068,96448.0,96442.0,0.0774]
[1739039202080,0.0021068,96448.0,96442.0,0.0774]
[1739039202288,0.0031068,96448.0,96442.0,0.0774]
[1739039202455,0.0001068,96448.0,96442.0,0.0774]
[1739039202866,0.0031068,96448.0,96442.0,0.0774]
[1739039203071,0.0031068,96448.0,96442.0,0.232932]
[1739039203280,0.0031068,96448.0,96442.0,0.0774]
[1739039203573,0.0001068,96448.0,96442.0,0.0774]
[1739039203768,0.0021068,96448.0,96442.0,0.0774]
[1739039204563,0.00066836,96448.0,96442.0,0.0774]
[1739039205131,0.01272485,96450.0,96442.0,0.0774]
[1739039205345,0.002,96448.0,96442.0,0.0774]
[1739039205573,0.003,96448.0,96442.0,0.0774]
[1739039205802,0.001,96448.0,96442.0,0.0774]
[1739039206302,0.002,96448.0,96442.0,0.0774]
[1739039206471,0.004,96448.0,96442.0,0.0774]
[1739039206684,0.002,96448.0,96442.0,0.0774]
[1739039206879,0.004,96448.0,96442.0,0.07762428]
[1739039208197,0.002,96448.0,96442.0,0.07762428]
[1739039208408,0.01272485,96450.0,96442.0,0.07762428]
[1739039208649,0.002,96448.0,96442.0,0.07762428]
[1739039209019,0.001,96448.0,96442.0,0.07762428]
[1739039209454,0.002,96448.0,96442.0,0.07762428]
[1739039209960,0.01372485,96450.0,96442.0,0.07762428]
[1739039210190,0.002,96448.0,96442.0,0.07762428]
[1739039211583,0.01272485,96450.0,96442.0,0.07762428]
[1739039211924,0.003,96448.0,96442.0,0.07862428]
[1739039213020,0.003,96448.0,96442.0,0.07762428]
[1739039213223,0.005,96448.0,96442.0,0.07762428]
[1739039218967,0.0051068,96448.0,96442.0,0.07762428]
[1739039219190,0.0031068,96448.0,96442.0,0.07762428]
[1739039219423,0.0001068,96448.0,96442.0,0.07762428]
[1739039219652,0.0051068,96448.0,96442.0,0.07762428]
[1739039220610,0.0031068,96448.0,96442.0,0.07762428]
[1739039221073,0.0051068,96448.0,96442.0,0.07762428]
[1739039222427,0.0001068,96448.0,96442.0,0.23315728]
[1739039222678,0.0041068,96448.0,96447.0,0.285325]
[1739039224466,0.0021068,96448.0,96447.0,0.285325]
[1739039224667,0.0001068,96448.0,96447.0,0.285325]
[1739039224996,0.0021068,96448.0,96447.0,0.285325]
[1739039235904,0.0021068,96448.0,96447.0,0.38782865]
[1739039237672,0.0021068,96448.0,96447.0,0.43008626]
[1739039237875,0.0001067,96450.0,96449.0,0.165522]
[1739039238073,0.0001067,96450.0,96449.0,0.42580787]
[1739039238277,0.0001067,96450.0,96449.0,0.42477142]
[1739039239164,0.0001067,96450.0,96449.0,0.43377142]
[1739039239540,0.0001067,96450.0,96449.0,0.44277142]
[1739039240404,0.0001067,96450.0,96449.0,0.41052565]
[1739039241790,0.0001067,96450.0,96449.0,0.73982565]
[1739039244316,0.0001067,96450.0,96449.0,0.88982565]
[1739039244527,0.08350077,96484.0,96467.0,0.284993]
[1739039244842,0.08350077,96484.0,96467.0,0.38749665]
[1739039245268,0.08350077,96484.0,96467.0,0.39749665]
[1739039246761,0.0009841,96485.0,96467.0,0.88579665]
[1739039247159,0.0001068,96490.0,96467.0,0.88579665]
[1739039247429,0.0001068,96490.0,96467.0,0.89479665]
[1739039247608,0.0001068,96490.0,96467.0,0.87679665]
[1739039247803,0.0001068,96490.0,96467.0,0.88882881]
[1739039248008,0.0001068,96490.0,96467.0,0.90682881]
[1739039248151,0.0001068,96490.0,96467.0,0.89782881]
[1739039248659,0.0001068,96490.0,96467.0,0.92790971]
[1739039249087,0.0001068,96490.0,96467.0,0.91890971]
[1739039249492,0.0001068,96490.0,96467.0,0.92790971]
[1739039250323,0.0001068,96490.0,96467.0,0.91890971]
[1739039250531,0.0001068,96490.0,96467.0,0.92790971]
[1739039251196,0.0001068,96490.0,96467.0,0.90990971]
[1739039251602,0.0001068,96490.0,96467.0,0.92790971]
[1739039251990,0.0001068,96490.0,96467.0,0.90990971]
[1739039252191,0.0001068,96490.0,96467.0,0.91890971]
[1739039252398,0.0001068,96490.0,96467.0,0.92790971]
[1739039254646,0.0001068,96490.0,96467.0,0.95090971]
[1739039256285,0.0001068,96490.0,96467.0,0.93290971]
[1739039256711,0.0001068,96490.0,96485.0,0.282864]
[1739039256913,0.0001068,96490.0,96485.0,0.71466765]
[1739039257118,0.00035986,96486.0,96485.0,0.72157996]
[1739039258313,0.00035986,96486.0,96485.0,0.72657996]
[1739039258915,0.00035986,96486.0,96485.0,0.72157996]
[1739039259334,0.00035986,96486.0,96485.0,0.73357996]
[1739039259536,0.00035986,96486.0,96485.0,0.72757996]
[1739039259745,0.00035986,96486.0,96485.0,0.74841411]
[1739039259906,0.00035986,96486.0,96485.0,0.75441411]
[1739039260530,0.00035986,96486.0,96485.0,0.74841411]
[1739039261022,0.00035986,96486.0,96485.0,0.75341411]
[1739039261216,0.00035986,96486.0,96485.0,0.74741411]
[1739039261478,0.00035986,96486.0,96485.0,0.74941411]
[1739039261897,0.00035986,96486.0,96485.0,0.75141411]
[1739039262103,0.00035986,96486.0,96485.0,0.75941411]
[1739039262302,0.00035986,96486.0,96485.0,0.77083378]
[1739039263290,0.00035986,96486.0,96485.0,0.79010839]
[1739039263491,0.0715941,96525.0,96521.0,0.155405]
[1739039263697,0.07527201,96525.0,96521.0,0.155405]
[1739039263966,0.07527201,96525.0,96522.0,0.00688509]
[1739039263967,0.01136309,96525.0,96522.0,0.00688509]
[1739039264326,0.01136309,96525.0,96508.0,0.207236]
[1739039264540,0.07602768,96520.0,96509.0,0.00793054]
[1739039264840,0.01136309,96525.0,96521.0,0.001]
[1739039265249,0.01236309,96525.0,96521.0,0.155406]
[1739039265472,0.01236309,96525.0,96522.0,0.155404]
[1739039265867,0.01236309,96525.0,96519.0,0.207211]
[1739039266271,0.01136309,96525.0,96521.0,0.155406]
[1739039266501,0.01236309,96525.0,96517.0,0.207217]
[1739039266913,0.01236309,96525.0,96509.0,0.414468]
[1739039267111,0.07602768,96520.0,96518.0,0.15541]
[1739039267314,0.01236309,96525.0,96519.0,0.001]
[1739039267493,0.01236309,96525.0,96520.0,0.155408]
[1739039267871,0.01236309,96525.0,96521.0,0.00688582]
[1739039268220,0.01336309,96525.0,96521.0,0.00688582]
[1739039268641,0.01136309,96525.0,96521.0,0.00688582]
[1739039268815,0.01136309,96525.0,96520.0,0.155406]
[1739039269040,0.01236309,96525.0,96522.0,0.00688375]
[1739039269247,0.01236309,96525.0,96521.0,0.16229047]
[1739039269421,0.01236309,96525.0,96523.0,0.00688302]
[1739039269601,0.01136309,96525.0,96522.0,0.00688375]
[1739039269801,0.01136309,96525.0,96524.0,0.0068823]
[1739039270010,0.01236309,96525.0,96523.0,0.00688302]
[1739039270267,0.01236309,96525.0,96524.0,0.0068823]
[1739039270951,0.01236309,96525.0,96523.0,0.001]
[1739039271158,0.01136309,96525.0,96524.0,0.0068823]
[1739039271333,0.01136309,96525.0,96524.0,0.001]
[1739039271541,0.01236309,96525.0,96524.0,0.001]
[1739039272146,0.00764,96533.0,96524.0,0.001]
[1739039272393,0.00045173,96532.0,96524.0,0.001]
[1739039272592,0.00045173,96532.0,96522.0,0.155404]
[1739039272807,0.001,96525.0,96522.0,0.155404]
[1739039273015,0.001,96525.0,96523.0,0.001]
[1739039273398,0.001,96525.0,96521.0,0.155406]
[1739039273788,0.001,96525.0,96522.0,0.001]
[1739039274010,0.001,96525.0,96522.0,0.156404]
[1739039274223,0.001,96525.0,96524.0,0.001]
[1739039274539,0.00045173,96532.0,96524.0,0.0068823]
[1739039274892,0.00045173,96532.0,96521.0,0.001]
[1739039275432,0.00045173,96532.0,96522.0,0.00688375]
[1739039276042,0.00045173,96532.0,96524.0,0.001]
[1739039276534,0.00045173,96532.0,96521.0,0.15562907]
[1739039276743,0.0001067,96525.0,96522.0,0.00688375]
[1739039276967,0.0001067,96525.0,96522.0,0.00788375]
[1739039277153,0.0001067,96525.0,96522.0,0.16328775]
[1739039277978,0.0001067,96525.0,96522.0,0.00788375]
[1739039278111,0.0001067,96525.0,96522.0,0.00688375]
[1739039278313,0.0001067,96525.0,96522.0,0.16228775]
[1739039279579,0.01145754,96525.0,96522.0,0.16228775]
[1739039279988,0.01145754,96525.0,96522.0,0.00688375]
[1739039280380,0.01145754,96525.0,96522.0,0.00788375]
[1739039280763,0.01145754,96525.0,96523.0,0.155402]
[1739039280965,0.01145754,96525.0,96524.0,0.0068823]
[1739039281170,0.01145754,96525.0,96522.0,0.001]
[1739039282151,0.01145754,96525.0,96521.0,0.15563007]
[1739039282508,0.00045173,96532.0,96523.0,0.001]
[1739039283166,0.00045173,96532.0,96522.0,0.155404]
[1739039283283,0.00045173,96532.0,96521.0,0.00122407]
[1739039283485,0.00045173,96532.0,96522.0,0.155403]
[1739039283982,0.00045173,96532.0,96523.0,0.001]
[1739039284693,0.00045173,96532.0,96524.0,0.0068823]
[1739039286046,0.00045173,96532.0,96524.0,0.001]
[1739039286247,0.00045173,96532.0,96524.0,0.002]
[1739039287391,0.012171,96532.0,96524.0,0.1574]
[1739039287635,0.00045173,96532.0,96524.0,0.002]
[1739039288757,0.00055843,96532.0,96524.0,0.1574]
[1739039288966,0.00055843,96532.0,96524.0,0.002]
[1739039291973,0.00055843,96532.0,96525.0,0.1554]
[1739039292237,0.00055843,96532.0,96524.0,0.002]
[1739039292951,0.00055843,96532.0,96522.0,0.20742907]
[1739039293206,0.00055843,96532.0,96522.0,0.15562707]
[1739039293664,0.00055843,96532.0,96525.0,0.001]
[1739039294827,0.00055843,96532.0,96526.0,0.0798]
[1739039295089,0.00055843,96532.0,96531.0,0.28099]
[1739039296885,0.00055843,96532.0,96531.0,0.28299]
[1739039298121,0.00055843,96532.0,96531.0,0.28099]
[1739039298291,0.00055843,96532.0,96531.0,0.28399]
[1739039299542,0.00055843,96532.0,96531.0,0.003]
[1739039301231,0.00055843,96532.0,96531.0,0.001]
[1739039301427,0.00055843,96532.0,96531.0,0.003]
[1739039301636,0.00055843,96532.0,96531.0,0.002]
[1739039302082,0.00055843,96532.0,96531.0,0.004]
[1739039304670,0.00055843,96532.0,96530.0,0.155391]
[1739039304671,0.01188806,96532.0,96530.0,0.155391]
[1739039305076,0.01188806,96532.0,96531.0,0.002]
[1739039305793,0.01188806,96532.0,96530.0,0.155391]
[1739039306192,0.00055843,96532.0,96530.0,0.156391]
[1739039306418,0.00055843,96532.0,96530.0,0.155391]
[1739039306769,0.00055843,96532.0,96531.0,0.001]
[1739039307599,0.00055843,96532.0,96531.0,0.1235]
[1739039307806,0.00055843,96532.0,96531.0,0.12453587]
[1739039307984,0.00055843,96532.0,96531.0,0.12353576]
[1739039308766,0.00055843,96532.0,96531.0,0.12453576]
[1739039309496,0.00055843,96532.0,96531.0,0.1275]
[1739039309785,0.00055843,96532.0,96531.0,0.1235]
[1739039309989,0.00055843,96532.0,96531.0,0.1255]
[1739039310170,0.00055843,96532.0,96531.0,0.1265]
[1739039311259,0.00055843,96532.0,96531.0,0.1235]
[1739039311462,0.00055843,96532.0,96531.0,0.1225]
[1739039311890,0.00055843,96532.0,96531.0,0.27789]
[1739039315634,0.00055843,96532.0,96531.0,0.28476412]
[1739039321894,0.00055843,96532.0,96531.0,0.28776412]
[1739039322601,0.00055843,96532.0,96531.0,0.28676412]
[1739039322813,0.00055843,96532.0,96531.0,0.28476412]
[1739039323011,0.00055843,96532.0,96531.0,0.28776412]
[1739039323328,0.00055843,96532.0,96531.0,0.28706412]
[1739039323877,0.00055843,96532.0,96531.0,0.28806412]
[1739039324073,0.00055843,96532.0,96531.0,0.30230073]
[1739039325373,0.00055843,96532.0,96531.0,0.29830073]
[1739039325577,0.00055843,96532.0,96531.0,0.30130073]
[1739039325786,0.00055843,96532.0,96531.0,0.30230073]
[1739039325985,0.00055843,96532.0,96531.0,0.29930073]
[1739039326279,0.00055843,96532.0,96531.0,0.40480438]
[1739039326489,0.00055843,96532.0,96531.0,0.40180438]
[1739039326843,0.00055843,96532.0,96531.0,0.40480438]
[1739039327119,0.00055843,96532.0,96531.0,0.40280438]
[1739039327337,0.00055843,96532.0,96531.0,0.00887412]
[1739039327338,0.12606208,96532.0,96531.0,0.00887412]
[1739039327542,0.33758716,96532.0,96531.0,0.00887412]
[1739039327755,0.155398,96526.0,96525.0,0.00022407]
[1739039328956,0.155398,96526.0,96525.0,0.00222407]
[1739039329676,0.155398,96526.0,96525.0,0.00978193]
[1739039329813,0.155398,96526.0,96525.0,0.00222407]
[1739039330421,0.155398,96526.0,96525.0,0.00322407]
[1739039331039,0.155398,96526.0,96525.0,0.00222407]
[1739039331865,0.155398,96526.0,96525.0,0.00022407]
[1739039332214,0.155398,96526.0,96525.0,0.00222407]
[1739039336310,0.155398,96526.0,96525.0,0.00996716]